[Event "July 23 Late 2024"]
[Site "Chess.com"]
[Date "2024.07.23"]
[Round "5.1"]
[White "Santos Latasa, Jaime"]
[Black "Carlsen, Magnus"]
[Result "0-1"]
[ECO "A05"]
[WhiteElo "2978"]
[BlackElo "3244"]
[PlyCount "94"]
[EventDate "2024.??.??"]
[WhiteTeam "ESP"]
[BlackTeam "NOR"]
[TimeControl "180+1"]
[WhiteClock "0:00:25"]
[BlackClock "0:00:50"]

1. Nf3 {[%emt 0:00:02]} b5 {[%emt 0:00:04]} 2. g3 {[%emt 0:00:01]} Bb7 {[%emt 0:00:01]} 3. Bg2 {[%emt 0:00:01]} c5 {[%emt 0:00:01]} 4. O-O {[%emt 0:00:01]} Nf6 {[%emt 0:00:02]} 5. d3 {[%emt 0:00:04]} g6 {[%emt 0:00:05]} 6. e4 {[%emt 0:00:02]} Bg7 {[%emt 0:00:00]} ({RR} 6... d6 7. d4 cxd4 8. Nxd4 a6 9. Re1 e5 10. Nb3 Bg7 11. a4 b4 12. a5 O-O 13. Ra4 Bc6 14. Rxb4 Bb5 15. c4 Nc6 16. cxb5 Nxb4 17. b6 Nc6 18. Nc3 Rc8 19. Bf1 Nb4 20. Bg5 Qd7 21. Nd2 {Kramnik,V (2777)-Ghaem Maghami,E (2596) Berlin 2015 1-0 (59)}) ({RR} 6... d6 7. a4 b4 8. e5 dxe5 9. Nxe5 Bxg2 10. Kxg2 Qd5+ 11. Qf3 Nbd7 ({RR} 11... Qxf3+ 12. Kxf3 Nfd7 13. Nxd7 Nxd7 14. Nd2 Ne5+ 15. Ke2 Bg7 16. Nf3 Nc6 17. Rb1 Nd4+ 18. Nxd4 cxd4 19. a5 b3 20. cxb3 Rb8 21. b4 Rxb4 22. b3 Kd7 23. Bd2 Rb5 24. Rfc1 Rhb8 25. b4 g5 26. g4) 12. Nc4 Bg7 13. Re1 e6 14. Qxd5 Nxd5 15. Nbd2 O-O 16. a5 Rac8 17. Nb3 Rc6 18. Bd2 e5 19. c3 Rb8 20. Rab1 f5 21. cxb4 {Epishin,V (2344)-Shishkin,V (2029) St Petersburg RUS 2025 ½-½ (42)}) 7. a4 {[%emt 0:00:05]} b4 {[%emt 0:00:02]} 8. Nbd2 {[%emt 0:00:01]} O-O $146 {[%emt 0:00:02]} ({RR} 8... d6 9. Nc4 O-O 10. h3 Nbd7 11. a5 Qc7 12. Re1 Rfe8 13. Bg5 h6 14. Bd2 Rad8 15. c3 bxc3 16. bxc3 d5 17. exd5 Nxd5 18. Ra3 Ba6 19. Qc2 e5 20. Nh2 Nb8 21. Ng4 h5 22. Nge3 Nxe3 23. Bxe3 {Evans,B-Stearns,A (2255) San Francisco 2000 1-0 (46)}) 9. Nc4 {[%emt 0:00:02]} Nc6 {[%emt 0:00:01]} 10. Re1 {[%emt 0:00:03]} d6 {[%emt 0:00:10]} 11. Bd2 {[%emt 0:00:10]} Nd7 {[%emt 0:00:02]} 12. Qc1 {[%emt 0:00:06]} Nb6 {[%emt 0:00:02]} 13. Bh6 {[%emt 0:00:05]} Nxc4 {[%emt 0:00:01]} 14. dxc4 {[%emt 0:00:01]} e5 {[%emt 0:00:05]} 15. Bxg7 {[%emt 0:00:08]} Kxg7 {[%emt 0:00:02]} 16. Nd2 {[%emt 0:00:01]} Nd4 {[%emt 0:00:06]} 17. c3 {[%emt 0:00:03]} bxc3 {[%emt 0:00:01]} 18. bxc3 {[%emt 0:00:01]} Ne6 {[%emt 0:00:12]} 19. Nf1 {[%emt 0:00:03]} f5 {[%emt 0:00:01]} 20. Rb1 {[%emt 0:00:07]} Bxe4 {[%emt 0:00:02]} 21. Bxe4 {[%emt 0:00:05]} fxe4 {[%emt 0:00:01]} 22. Rb7+ {[%emt 0:00:00]} Rf7 {[%emt 0:00:07]} 23. Rxf7+ {[%emt 0:00:02]} Kxf7 {[%emt 0:00:00]} 24. Nd2 {[%emt 0:00:03]} Ng5 {[%emt 0:00:07]} 25. h4 {[%emt 0:00:17]} Nf3+ {[%emt 0:00:03]} 26. Nxf3 {[%emt 0:00:01]} exf3 {[%emt 0:00:00]} 27. Qd1 {[%emt 0:00:00]} Kg7 {[%emt 0:00:09]} 28. Qxf3 {[%emt 0:00:02]} Rb8 {[%emt 0:00:00]} 29. Qd5 {[%emt 0:00:05]} Qf6 {[%emt 0:00:03]} 30. Rd1 {[%emt 0:00:15]} Rb2 {[%emt 0:00:09]} 31. Rd2 {[%emt 0:00:01]} Rxd2 {[%emt 0:00:01]} 32. Qxd2 {[%emt 0:00:01]} e4 {[%emt 0:00:04]} 33. Qd5 {[%emt 0:00:07]} e3 {[%emt 0:00:02]} 34. fxe3 {[%emt 0:00:05]} Qxc3 {[%emt 0:00:01]} 35. Qxd6 {[%emt 0:00:06]} Qxe3+ {[%emt 0:00:02]} 36. Kg2 {[%emt 0:00:04]} a5 {[%emt 0:00:15]} 37. Qc7+ {[%emt 0:00:10]} Kf6 {[%emt 0:00:03]} 38. Qd8+ {[%emt 0:00:11]} Kf5 {[%emt 0:00:10]} 39. Qd7+ {[%emt 0:00:10]} Qe6 {[%emt 0:00:16]} 40. Qxh7 {[%emt 0:00:05]} Kg4 {[%emt 0:00:11]} 41. Qc7 {[%emt 0:00:10]} Qe2+ {[%emt 0:00:03]} 42. Kg1 {[%emt 0:00:00]} Qe3+ {[%emt 0:00:06]} 43. Kg2 {[%emt 0:00:08]} Qf3+ {[%emt 0:00:02]} 44. Kh2 {[%emt 0:00:01]} Qf2+ {[%emt 0:00:01]} 45. Kh1 {[%emt 0:00:01]} Qf1+ {[%emt 0:00:00]} 46. Kh2 {[%emt 0:00:02]} Qh3+ {[%emt 0:00:00]} 47. Kg1 {[%emt 0:00:04]} Qxg3+ {[%emt 0:00:00]} 0-1